bitfinex-derivatives/quotes_SOLF0:USTF0_20250624
["timestamp","ask_amount","ask_price","bid_price","bid_amount"]
[1750728249582,5.70540995,143.9,143.86,3.48275447]
[1750728249778,35.02,143.91,143.86,3.48275447]
[1750728249977,5.70553162,143.9,143.87,6.9455]
[1750728250177,6.944,143.91,143.87,6.9455]
[1750728251282,41.9632,143.92,143.88,6.9448]
[1750728251481,35.02,143.92,143.88,3.48275447]
[1750728251681,5.70786322,143.91,143.88,3.48275447]
[1750728251883,35.02,143.92,143.88,3.48275447]
[1750728252077,12.65164833,143.91,143.88,3.48275447]
[1750728252282,35.02,143.92,143.88,3.48275447]
[1750728252586,13.54213499,143.91,143.86,3.48275447]
[1750728252890,5.70784665,143.9,143.86,3.48275447]
[1750728253079,35.02,143.92,143.86,3.48275447]
[1750728253383,5.70972973,143.91,143.86,3.48275447]
[1750728253589,5.70972973,143.9,143.86,3.48275447]
[1750728253781,35.02,143.92,143.86,3.48275447]
[1750728253976,17.87817839,143.91,143.87,6.9452]
[1750728254182,35.02,143.92,143.86,3.48275447]
[1750728254380,5.71137614,143.91,143.86,3.48275447]
[1750728254581,35.02,143.92,143.88,3.48275447]
[1750728254783,5.73053567,143.91,143.88,3.48275447]
[1750728254984,35.02,143.92,143.88,3.48275447]
[1750728255182,5.73052392,143.91,143.88,3.48275447]
[1750728255385,35.02,143.92,143.88,3.48275447]
[1750728255582,5.73053013,143.91,143.88,10.42755447]
[1750728255783,41.9634,143.92,143.88,10.42755447]
[1750728255988,5.73062717,143.91,143.88,10.42755447]
[1750728256189,41.9634,143.92,143.88,10.42755447]
[1750728256381,5.73062818,143.91,143.88,10.42755447]
[1750728256586,41.9634,143.92,143.88,10.42755447]
[1750728256889,5.73404547,143.91,143.88,10.42755447]
[1750728257082,41.9634,143.92,143.88,10.42755447]
[1750728257283,5.73401643,143.91,143.88,10.42755447]
[1750728257483,41.9634,143.92,143.88,10.42755447]
[1750728257691,5.73385301,143.91,143.88,10.42755447]
[1750728257889,41.9634,143.92,143.88,10.42755447]
[1750728258078,5.73345295,143.91,143.88,10.42755447]
[1750728258278,41.9634,143.92,143.88,6.9448]
[1750728258584,5.73345295,143.91,143.88,10.42755447]
[1750728258881,41.9634,143.92,143.88,10.42755447]
[1750728259083,5.73250882,143.91,143.88,10.42755447]
[1750728259284,41.9634,143.92,143.89,6.9444]
[1750728259486,35.02,143.92,143.88,3.48275447]
[1750728260291,6.9436,143.91,143.88,3.48275447]
[1750728260587,35.02,143.92,143.88,3.48275447]
[1750728260993,41.9634,143.92,143.88,10.42775447]
[1750728261990,35.02,143.92,143.89,6.9444]
[1750728262185,35.02,143.92,143.88,3.48275447]
[1750728262591,31.0,143.93,143.9,6.944]
[1750728262987,35.0,143.95,143.9,3.48275447]
[1750728263299,5.73335739,143.94,143.91,6.9435]
[1750728263499,35.0,143.95,143.91,6.9435]
[1750728263699,5.73172429,143.94,143.92,6.9427]
[1750728263996,35.0,143.95,143.92,6.9427]
[1750728264206,5.7316777,143.94,143.92,6.9427]
[1750728264406,35.0,143.95,143.92,6.9427]
[1750728264611,5.73168944,143.94,143.92,6.9427]
[1750728264803,35.0,143.95,143.92,6.9427]
[1750728265009,5.73056672,143.94,143.93,6.9426]
[1750728265711,5.73056672,143.94,143.92,6.9429]
[1750728266011,35.0,143.95,143.92,6.9429]
[1750728266215,5.72954904,143.94,143.92,6.9429]
[1750728266512,35.0,143.95,143.93,6.9426]
[1750728268202,44.3096,143.98,143.92,3.48275447]
[1750728268405,33.2226,144.02,143.96,3.48275447]
[1750728268608,13.52963639,144.01,143.96,3.48275447]
[1750728268808,5.72534982,144.0,143.97,6.9406]
[1750728269006,6.939,144.01,143.97,6.9406]
[1750728269208,5.7216485,144.0,143.97,6.9406]
[1750728269411,72.9384,144.02,143.98,6.94]
[1750728269606,72.9384,144.02,143.96,3.48275447]
[1750728269607,5.72160704,144.01,143.96,3.48275447]
[1750728269802,5.72160704,144.0,143.96,3.48275447]
[1750728270001,6.9388,144.01,143.97,6.9402]
[1750728270203,5.71842865,144.0,143.96,3.48275447]
[1750728270510,72.9384,144.02,143.98,6.9399]
[1750728270815,5.71561343,144.01,143.98,6.9399]
[1750728271111,72.9384,144.02,143.98,6.9399]
[1750728271312,5.73780434,144.01,143.98,6.9399]
[1750728271513,72.9384,144.02,143.98,6.9399]
[1750728271702,5.73516002,144.01,143.98,6.9399]
[1750728271899,5.73542651,144.0,143.94,3.48275447]
[1750728272101,3.48275447,144.01,143.94,3.48275447]
[1750728272303,5.735482,144.0,143.94,3.48275447]
[1750728272500,66.0,144.02,143.94,3.48275447]
[1750728272706,5.73360011,144.01,143.96,3.48275447]
[1750728272909,66.0,144.02,143.96,3.48275447]
[1750728273112,5.73354582,144.01,143.96,3.48275447]
[1750728273313,72.9386,144.02,143.96,3.48275447]
[1750728273612,5.73354582,144.01,143.96,3.48275447]
[1750728273814,6.9388,144.01,143.98,6.94]
[1750728274415,72.9384,144.02,143.99,6.9397]
[1750728274617,5.73190305,144.01,143.99,6.9397]
[1750728275115,72.9384,144.02,143.99,6.9397]
[1750728275315,5.73505123,144.01,143.99,6.9397]
[1750728275612,35.0,144.02,144.0,6.9392]
[1750728276915,6.9376,144.04,144.0,6.9392]
[1750728277511,5.72892969,144.04,144.01,6.9383]
[1750728277705,5.72892969,144.04,144.0,3.48275447]
[1750728278625,5.72892969,144.04,144.01,6.9386]
[1750728278810,5.72892969,144.04,144.0,3.48275447]
[1750728279118,65.98,144.05,144.0,3.48275447]
[1750728279119,31.0,144.05,144.0,3.48275447]
[1750728279307,44.1566,144.06,144.02,6.9379]
[1750728279915,6.9368,144.05,144.01,6.9386]
[1750728280116,37.2201,144.06,144.0,3.48275447]
[1750728280515,34.98,144.06,144.02,3.48275447]
[1750728281023,34.98,144.06,144.04,6.9371]
[1750728281219,40.16041955,144.09,144.04,3.48275447]
[1750728281421,5.74612261,144.08,144.04,3.48275447]
[1750728281616,34.98,144.09,144.04,3.48275447]
[1750728281812,5.74422025,144.08,144.04,3.48275447]
[1750728282014,34.98,144.09,144.04,3.48275447]
[1750728282316,34.98,144.11,144.06,3.48275447]
[1750728282617,16.19248814,144.13,144.02,2.3909]
[1750728282811,16.19248814,144.13,144.04,3.48275447]
[1750728282812,5.73891088,144.12,144.04,3.48275447]
[1750728283015,5.73891088,144.11,144.04,3.48275447]
[1750728283217,34.98,144.1,144.02,37.3709]
[1750728283416,34.98,144.1,144.03,3.48275447]
[1750728283815,34.98,144.1,144.06,6.9359]
[1750728284328,34.98,144.1,144.05,3.48275447]
[1750728285113,41.9147,144.1,144.02,37.3709]
[1750728285313,41.9147,144.1,144.04,3.48275447]
[1750728285721,34.98,144.1,144.04,3.48275447]
[1750728285915,9.21648244,144.09,144.02,38.46275447]
[1750728286119,2.797e-05,144.09,144.02,34.98]
[1750728286421,3.48275447,144.19,144.08,3.48275447]
[1750728286627,43.29107416,144.18,144.07,38.12]
[1750728286818,3.46410847,144.15,144.06,3.46410847]
[1750728287026,40.3701,144.14,144.06,3.46410847]
[1750728287320,47.3028,144.14,144.05,38.12]
[1750728287629,3.46410847,144.13,144.06,3.46410847]
[1750728287825,3.46410847,144.13,144.03,2.381]
[1750728287826,10.39750847,144.13,144.03,2.381]
[1750728288124,42.5983,144.14,144.04,3.46410847]
[1750728288328,3.46410847,144.12,144.04,3.46410847]
[1750728288524,3.46532602,144.12,144.07,6.9354]
[1750728289023,3.46532602,144.12,144.04,3.46532602]
[1750728289225,3.46532602,144.12,144.05,3.46532602]
[1750728289922,637.66,144.17,144.1,3.46532602]
[1750728290129,38.12,144.17,144.12,3.46532602]
[1750728290317,38.12,144.2,144.1,38.12]
[1750728290524,40.4579,144.23,144.16,3.46532602]
[1750728290821,40.4579,144.23,144.2,6.9295]
[1750728291021,6.47664417,144.32,144.14,39.7]
[1750728291230,3.46532602,144.27,144.15,6.9154]
[1750728291528,3.46532602,144.23,144.15,7.98192602]
[1750728291728,39.7,144.22,144.15,7.98192602]
[1750728292027,3.46532602,144.21,144.12,3.46532602]
[1750728292230,10.29837086,144.21,144.11,45.46947086]
[1750728292528,6.9301,144.19,144.11,45.46947086]
[1750728292823,39.7,144.18,144.11,5.76947086]
[1750728293019,39.7,144.18,144.11,6.9339]
[1750728293221,39.7,144.18,144.09,12.47157086]
[1750728293416,39.7,144.18,144.09,10.25087086]
[1750728293621,6.9316,144.16,144.1,6.9342]
[1750728294023,5.76947086,144.17,144.07,148.46947086]
[1750728294227,6.9321,144.15,144.07,148.46947086]
[1750728294524,39.7,144.14,144.07,148.46947086]
[1750728294725,39.7,144.14,144.09,6.9348]
[1750728295132,39.7,144.14,144.07,148.46947086]
[1750728295334,39.7,144.14,144.09,6.9348]
[1750728295529,46.6325,144.14,144.09,6.9348]
[1750728296132,6.933,144.13,144.08,6.9353]
[1750728296337,39.7,144.14,144.07,142.7]
[1750728296637,39.7,144.14,144.07,148.46947086]
[1750728297135,39.7,144.14,144.1,6.9344]
[1750728298637,39.7,144.14,144.11,6.9338]
[1750728299321,39.7,144.14,144.12,6.9334]
[1750728300524,46.6112,144.17,144.12,6.9334]
[1750728300929,6.9315,144.16,144.12,6.9334]
[1750728301737,6.9315,144.16,144.07,142.7]
[1750728301738,39.68,144.17,144.1,6.9339]
[1750728302228,6.9324,144.15,144.1,6.9339]
[1750728302640,46.6112,144.17,144.1,5.76947086]
[1750728303139,46.6112,144.17,144.11,5.76947086]
[1750728303942,6.9316,144.16,144.11,5.76947086]
[1750728304142,39.68,144.17,144.09,5.76947086]
[1750728304542,46.6112,144.17,144.11,5.76947086]
[1750728304836,39.68,144.17,144.11,5.76947086]
[1750728305537,39.68,144.17,144.14,6.9325]
[1750728305735,39.68,144.17,144.11,5.76947086]
[1750728306338,39.68,144.19,144.13,5.76947086]
[1750728307531,39.68,144.19,144.11,4.4597]
[1750728307532,39.68,144.19,144.15,5.76947086]
[1750728308129,39.68,144.19,144.17,6.9307]
[1750728308337,39.68,144.19,144.15,5.76947086]
[1750728308535,46.6089,144.22,144.15,5.76947086]
[1750728308738,46.6089,144.22,144.17,6.9307]
[1750728308937,6.9291,144.21,144.17,6.9307]
[1750728309242,39.68,144.22,144.15,5.76947086]
[1750728309435,39.68,144.22,144.16,6.9312]
[1750728309830,5.22488346,144.21,144.16,6.9312]
[1750728310039,5.22488346,144.21,144.17,6.931]
[1750728310344,44.86922171,144.22,144.17,6.931]
[1750728310734,39.68,144.22,144.18,6.9304]
[1750728311134,6.9287,144.22,144.18,6.9304]
[1750728311335,46.6087,144.22,144.15,5.76947086]
[1750728311842,6.9293,144.21,144.15,5.76947086]
[1750728312039,39.68,144.22,144.15,5.76947086]
[1750728312245,39.68,144.22,144.18,3.45933769]
[1750728312736,39.68,144.22,144.2,6.9296]
[1750728313043,638.94,144.25,144.19,3.45933769]
[1750728314139,5.20584358,144.24,144.17,3.45933769]
[1750728314444,642.39933769,144.25,144.17,3.45933769]
[1750728314635,5.2092995,144.24,144.17,3.45933769]
[1750728314830,12.1378995,144.23,144.18,6.9302]
[1750728315040,6.9286,144.23,144.18,6.9302]
[1750728315240,642.39933769,144.25,144.18,6.9302]
[1750728315441,5.20929243,144.24,144.17,10.39023769]
[1750728315642,3.45933769,144.23,144.17,10.39023769]
[1750728315943,3.45933769,144.23,144.17,3.45933769]
[1750728316739,6.9291,144.21,144.18,6.9305]
[1750728317043,6.9291,144.21,144.15,3.45933769]
[1750728317241,46.6091,144.21,144.15,3.45933769]
[1750728318243,39.68,144.21,144.15,3.45933769]
[1750728318643,39.68,144.21,144.17,6.9309]
[1750728319343,46.6094,144.21,144.17,6.9309]
[1750728319646,39.68,144.21,144.17,6.9309]
[1750728320142,43.13933769,144.21,144.11,2.244]
[1750728320349,16.08277681,144.2,144.13,3.45933769]
[1750728320548,5.22784176,144.19,144.13,3.45933769]
[1750728320848,5.23341934,144.18,144.1,3.45933769]
[1750728321143,48.21275703,144.17,144.1,3.45933769]
[1750728321336,6.9317,144.16,144.12,6.9334]
[1750728321542,39.52,144.17,144.12,3.45933769]
[1750728321737,39.52,144.17,144.14,6.9321]
[1750728322548,1.9101,144.2,144.14,6.9321]
[1750728322845,2.59494623,144.23,144.16,3.45933769]
[1750728323045,5.24043096,144.22,144.16,3.45933769]
[1750728323250,599.26,144.25,144.19,6.9301]
[1750728323548,55.63585875,144.24,144.19,6.9301]
[1750728323743,5.23988963,144.23,144.19,10.38943769]
[1750728324048,46.448,144.24,144.19,10.38943769]
[1750728324248,39.52,144.24,144.2,6.9291]
[1750728324640,39.52,144.24,144.21,6.929]
[1750728326146,39.52,144.24,144.22,6.9285]
[1750728326656,39.52,144.24,144.21,10.38833769]
[1750728326951,39.52,144.24,144.21,3.45933769]
[1750728327249,39.52,144.24,144.2,10.38853769]
[1750728327447,39.52,144.24,144.2,3.45933769]
[1750728328640,39.52,144.24,144.21,6.9287]
[1750728328840,39.52,144.24,144.2,3.45933769]
[1750728329048,39.52,144.24,144.22,3.45933769]
[1750728329254,2.3091,144.26,144.22,10.38783769]
[1750728329457,39.5,144.27,144.22,3.45933769]
[1750728329755,39.5,144.27,144.24,3.45933769]
[1750728330049,41.7861,144.3,144.24,3.45933769]
[1750728330254,5.65680402,144.29,144.27,6.9258]
[1750728330450,5.18776386,144.32,144.27,6.9258]
[1750728330645,10.79291125,144.31,144.26,3.45933769]
[1750728330846,17.73445345,144.3,144.25,6.9271]
[1750728331150,5.18196956,144.31,144.24,3.45933769]
[1750728331352,39.5,144.33,144.21,7.0386]
[1750728331353,39.5,144.33,144.26,3.45933769]
[1750728331552,15.98828968,144.32,144.26,3.45933769]
[1750728331759,5.66227843,144.31,144.26,3.45933769]
[1750728332053,12.06487982,144.32,144.27,6.9262]
[1750728332256,5.66175179,144.31,144.26,3.45933769]
[1750728332548,12.06450253,144.32,144.28,6.9257]
[1750728332750,6.9242,144.32,144.26,3.45933769]
[1750728332948,46.4235,144.33,144.28,6.9256]
[1750728333155,10.80020976,144.32,144.28,6.9256]
[1750728333364,39.5,144.33,144.28,3.45933769]
[1750728333555,52.4210872,144.36,144.28,3.45933769]
[1750728333756,15.9884234,144.35,144.28,3.45933769]
[1750728333957,6.9237,144.33,144.28,10.38493769]
[1750728334450,6.9237,144.33,144.29,6.9252]
[1750728335152,39.5,144.36,144.3,3.45933769]
[1750728335350,39.5,144.36,144.31,3.45933769]
[1750728335551,44.63567943,144.36,144.31,3.45933769]
[1750728335758,39.5,144.36,144.31,3.45933769]
[1750728336253,39.5,144.36,144.29,4.768]
[1750728336454,46.422,144.36,144.32,3.45933769]
[1750728336652,39.5,144.36,144.3,3.45276917]
[1750728336848,46.4223,144.36,144.3,3.45276917]
[1750728337047,598.8,144.39,144.32,3.45276917]
[1750728337257,50.31623318,144.38,144.32,3.45276917]
[1750728337451,51.55137141,144.38,144.32,3.45276917]
[1750728337648,46.4013,144.38,144.32,3.45276917]
[1750728337852,39.48,144.38,144.32,3.45276917]
[1750728338046,39.48,144.38,144.33,6.923]
[1750728338855,39.48,144.38,144.32,3.45276917]
[1750728339256,6.9218,144.37,144.33,6.923]
[1750728339557,39.48,144.38,144.32,3.45276917]
[1750728340163,39.48,144.38,144.29,7.1636]
[1750728340362,46.4013,144.38,144.34,6.9228]
[1750728340562,39.48,144.38,144.33,3.45276917]
[1750728341062,39.48,144.38,144.35,6.922]
[1750728341258,39.48,144.38,144.33,3.45276917]
[1750728341758,46.4013,144.38,144.29,7.1636]
[1750728341967,39.48,144.38,144.33,3.45276917]
[1750728342165,39.48,144.38,144.35,6.922]
[1750728342461,39.48,144.38,144.35,3.45276917]
[1750728342665,39.48,144.38,144.29,7.1636]
[1750728342860,39.48,144.38,144.34,3.45276917]
[1750728343263,39.48,144.38,144.34,10.37526917]
[1750728343466,39.48,144.38,144.34,3.45276917]
[1750728343766,39.48,144.38,144.29,7.1636]
[1750728344063,42.93276917,144.38,144.29,4.768]
[1750728344366,3.45276917,144.37,144.3,6.9246]
[1750728344558,9.13495713,144.37,144.25,41.8122]
[1750728344859,11.03885713,144.37,144.28,3.45276917]
[1750728345060,1.9039,144.37,144.28,3.45276917]
[1750728345270,11.03976002,144.37,144.28,3.45276917]
[1750728345470,5.35666917,144.37,144.28,3.45276917]
[1750728345968,11.03928131,144.37,144.28,3.45276917]
[1750728346175,5.35666917,144.37,144.28,3.45276917]
[1750728346468,6.9223,144.36,144.31,6.9239]
[1750728346661,1.9039,144.37,144.31,6.9239]
[1750728346861,1.9039,144.37,144.32,6.9238]
[1750728347162,1.9039,144.37,144.3,3.45276917]
[1750728347360,6.9222,144.36,144.33,6.9232]
[1750728347672,42.93276917,144.38,144.3,3.45276917]
[1750728347853,39.48,144.38,144.29,39.48]
[1750728348057,6.9215,144.37,144.32,3.45276917]
[1750728348564,6.9215,144.37,144.29,39.48]
[1750728348765,6.9215,144.37,144.32,3.45276917]
[1750728348965,6.922,144.36,144.32,3.45276917]
[1750728349368,6.922,144.36,144.32,10.37646917]
[1750728349570,6.922,144.36,144.32,3.45276917]
[1750728349871,6.9217,144.37,144.33,6.9231]
[1750728350763,42.93276917,144.38,144.29,39.48]
[1750728350963,42.93276917,144.38,144.29,3.45276917]
[1750728351167,6.9227,144.35,144.31,6.9242]
[1750728352672,6.9229,144.34,144.31,6.9242]
[1750728352872,6.9229,144.34,144.3,6.9246]
[1750728353572,40.14,144.34,144.29,6.9251]
[1750728353972,6.9236,144.33,144.29,6.9251]
[1750728354162,6.9236,144.33,144.3,6.9248]
[1750728354559,43.59276917,144.34,144.26,40.16]
[1750728354763,43.59276917,144.34,144.28,6.9255]
[1750728355068,6.9242,144.32,144.28,6.9255]
[1750728355263,43.59276917,144.34,144.26,47.0866]
[1750728355469,43.59276917,144.34,144.25,4.6821]
[1750728355470,3.45276917,144.32,144.25,2.3499]
[1750728355666,6.9248,144.3,144.24,3.45276917]
[1750728355970,6.9248,144.3,144.26,6.9263]
[1750728356175,6.9254,144.29,144.25,3.4557773]
[1750728356671,6.9254,144.29,144.25,10.3828773]
[1750728356873,6.9254,144.29,144.25,6.9271]
[1750728357268,6.9253,144.29,144.26,6.9266]
[1750728358378,40.14,144.3,144.24,3.4557773]
[1750728359183,47.0648,144.3,144.26,6.9264]
[1750728359365,40.14,144.3,144.24,3.4557773]
[1750728359571,40.14,144.3,144.24,5.7322773]
[1750728359872,40.14,144.3,144.27,6.9259]
[1750728360269,40.14,144.3,144.26,10.3823773]
[1750728360871,40.14,144.3,144.26,3.4557773]
[1750728361881,40.14,144.3,144.27,6.9259]
[1750728362472,40.14,144.3,144.26,3.4557773]
[1750728362678,40.16,144.34,144.28,3.4557773]
[1750728363072,40.16,144.34,144.3,3.4557773]
[1750728363377,40.16,144.34,144.29,3.4557773]
[1750728363579,40.16,144.34,144.3,6.9248]
[1750728363883,40.16,144.34,144.28,3.4557773]
[1750728364080,6.9236,144.33,144.29,6.9249]
[1750728364573,40.16,144.34,144.29,6.9249]
[1750728365083,6.9235,144.33,144.3,6.9248]
[1750728366478,40.16,144.34,144.29,3.4557773]
[1750728366885,47.0831,144.34,144.3,6.9245]
[1750728367184,47.0831,144.34,144.29,3.4557773]
[1750728367583,47.0831,144.34,144.31,6.9242]
[1750728367983,47.0831,144.34,144.29,3.4557773]
[1750728368180,40.16,144.34,144.29,3.4557773]
[1750728368382,37.9225,144.35,144.27,40.16]
[1750728368383,40.16,144.37,144.33,3.4557773]
[1750728368584,40.16,144.37,144.36,6.9219]
[1750728368883,45.85523482,144.37,144.36,6.9219]
[1750728369179,40.16,144.37,144.36,6.9219]
[1750728369377,31.0,144.38,144.35,6.9222]
[1750728369578,31.0,144.38,144.31,40.16]
[1750728369781,5.69730899,144.37,144.32,10.3793773]
[1750728369981,5.69730899,144.36,144.32,3.4557773]
[1750728370278,6.9216,144.37,144.33,6.9231]
[1750728370781,12.62185774,144.36,144.3,3.4557773]
[1750728371086,6.9222,144.36,144.32,6.9235]
[1750728371586,6.9225,144.35,144.32,6.9235]
[1750728372179,6.9229,144.34,144.31,6.9241]
[1750728372475,40.14,144.36,144.31,6.9241]
[1750728372675,12.64590226,144.35,144.31,6.9241]
[1750728372878,6.9226,144.35,144.31,6.9241]
[1750728373282,5.72669567,144.34,144.32,6.9238]
[1750728373477,6.9226,144.35,144.32,6.9238]
[1750728373679,12.64979737,144.34,144.3,6.9246]
[1750728373878,6.9229,144.34,144.3,6.9246]
[1750728374085,5.72752038,144.33,144.3,6.9246]
[1750728374286,7.74089613,144.35,144.3,6.9246]
[1750728374585,43.5957773,144.36,144.3,6.9246]
[1750728374586,13.47410129,144.34,144.3,6.9246]
[1750728374791,5.73054725,144.33,144.31,6.9243]
[1750728374993,6.9231,144.34,144.31,6.9243]
[1750728375179,5.73064819,144.33,144.31,6.9243]
[1750728375380,6.9231,144.34,144.31,6.9243]
[1750728375580,5.73180477,144.33,144.31,6.9243]
[1750728375781,6.9231,144.34,144.31,6.9243]
[1750728377293,6.9227,144.35,144.31,6.9243]
[1750728377492,5.733691,144.34,144.32,6.9236]
[1750728377681,6.9227,144.35,144.32,6.9236]
[1750728377881,5.73393598,144.34,144.32,6.9236]
[1750728378182,6.9227,144.35,144.31,6.9241]
[1750728378381,12.64393653,144.34,144.31,6.9241]
[1750728378693,6.9229,144.34,144.31,6.9241]
[1750728379188,78.0624,144.36,144.32,6.9237]
[1750728379390,5.72949525,144.35,144.32,6.9237]
[1750728379588,78.0624,144.36,144.32,6.9237]
[1750728379789,5.72952697,144.35,144.32,6.9237]
[1750728379987,6.9225,144.35,144.32,6.9237]
[1750728380183,6.9225,144.35,144.31,6.9241]
[1750728380587,6.923,144.34,144.31,6.9241]
[1750728380994,6.923,144.34,144.3,6.9247]
[1750728381499,6.9224,144.35,144.29,3.4557773]
[1750728381693,5.73867697,144.34,144.29,3.4557773]
[1750728381996,6.9224,144.35,144.29,3.4557773]
[1750728382188,6.9224,144.35,144.31,6.924]
[1750728382387,6.9229,144.34,144.29,3.4557773]
[1750728382991,74.59380475,144.36,144.28,42.4886]
[1750728383190,44.49039273,144.35,144.28,45.94240475]
[1750728383501,8.34639045,144.34,144.29,6.9253]
[1750728383798,5.73889243,144.33,144.29,6.9253]
[1750728383992,5.73889243,144.33,144.24,602.8359]
[1750728383993,70.42,144.32,144.27,3.45380475]
[1750728384296,70.42,144.32,144.25,3.45380475]
[1750728384297,5.74009812,144.31,144.25,3.45380475]
[1750728384495,70.42,144.32,144.25,3.45380475]
[1750728384697,12.66432128,144.31,144.25,3.45380475]
[1750728384894,6.9245,144.31,144.25,3.45380475]
[1750728385395,6.9245,144.31,144.27,6.926]
[1750728386005,6.9252,144.3,144.26,3.45513938]
[1750728386594,73.87513938,144.32,144.26,6.9266]
[1750728386798,13.48675279,144.31,144.24,45.15163938]
[1750728387098,6.9256,144.29,144.25,6.9271]
[1750728387499,5.74036484,144.28,144.25,6.9271]
[1750728387801,6.9256,144.29,144.25,6.9271]
[1750728388100,5.73940269,144.28,144.24,6.9276]
[1750728388399,3.45513938,144.3,144.24,3.45513938]
[1750728388605,5.7254187,144.29,144.24,3.45513938]
[1750728388797,5.13999114,144.3,144.24,3.45513938]
[1750728388989,5.72543709,144.29,144.24,3.45513938]
[1750728389297,5.72557298,144.28,144.25,6.927]
[1750728389602,33.3034,144.31,144.25,6.927]
[1750728389809,47.89942284,144.3,144.25,6.927]
[1750728390102,5.72403379,144.29,144.25,6.927]
[1750728390399,6.9254,144.29,144.25,6.927]
[1750728390800,31.0,144.3,144.26,3.45513938]
[1750728391498,39.42,144.32,144.24,3.45513938]
[1750728391701,5.72137167,144.31,144.24,3.45513938]
[1750728391899,46.3441,144.32,144.28,6.9257]
[1750728392103,5.7214096,144.31,144.28,6.9257]
[1750728392300,46.3441,144.32,144.28,6.9257]
[1750728392498,5.72138311,144.31,144.28,6.9257]
[1750728392699,6.9244,144.31,144.28,6.9257]
[1750728393199,39.42,144.32,144.28,6.9257]
[1750728393502,5.72192721,144.31,144.26,3.45513938]
[1750728393708,5.72192721,144.3,144.26,3.45513938]
[1750728394002,9.50841485,144.31,144.27,6.9258]
[1750728394198,5.72221969,144.3,144.27,6.9258]
[1750728394398,6.9243,144.31,144.27,6.9258]
[1750728394595,12.64732501,144.3,144.27,6.9258]
[1750728394901,6.9249,144.3,144.27,6.9258]
[1750728395697,12.63007952,144.29,144.26,6.9267]
[1750728395998,12.63007952,144.29,144.21,39.42]
[1750728395999,39.42,144.32,144.25,39.42]
[1750728396204,5.7037808,144.31,144.27,3.45400045]
[1750728396399,46.344,144.32,144.26,2.3856]
[1750728396602,6.9249,144.3,144.26,2.3856]
[1750728397195,39.42,144.32,144.26,6.9264]
[1750728397401,8.28846076,144.31,144.26,6.9264]
[1750728397596,5.70426358,144.3,144.26,6.9264]
[1750728397905,2.58419718,144.31,144.26,6.9264]
[1750728398103,5.70418651,144.3,144.26,6.9264]
[1750728398298,2.58420412,144.31,144.26,6.9264]
[1750728398493,5.70395851,144.3,144.26,6.9264]
[1750728398801,6.925,144.3,144.26,6.9264]
[1750728399493,39.42,144.32,144.25,5.86160045]
[1750728399697,5.70366664,144.31,144.25,5.86160045]
[1750728400003,39.42,144.32,144.25,5.86160045]
[1750728400207,5.7036425,144.31,144.27,6.926]
[1750728400398,46.3442,144.32,144.27,6.926]
[1750728400595,5.70357032,144.31,144.27,6.926]
[1750728400798,46.3442,144.32,144.28,6.9256]
[1750728400998,12.63234471,144.31,144.25,5.86160045]
[1750728401199,39.42,144.32,144.25,5.86160045]
[1750728401400,5.70821471,144.31,144.25,5.86160045]
[1750728401601,46.3443,144.32,144.27,6.926]
[1750728401901,5.70849281,144.31,144.27,6.926]
[1750728402101,39.42,144.32,144.25,5.86160045]
[1750728402405,5.70850102,144.31,144.25,5.86160045]
[1750728402711,39.42,144.32,144.25,5.86160045]
[1750728402906,36.70911186,144.31,144.25,5.86160045]
[1750728403102,31.0,144.31,144.25,5.86160045]
[1750728403305,37.9247,144.31,144.27,6.926]
[1750728403504,37.9247,144.31,144.25,5.86160045]
[1750728403804,5.70946748,144.3,144.25,5.86160045]
[1750728403998,37.9247,144.31,144.25,2.4076]
[1750728404204,31.0,144.31,144.28,6.9257]
[1750728404501,39.42,144.32,144.28,6.9257]
[1750728404703,5.70957576,144.31,144.28,6.9257]
[1750728404903,46.3438,144.32,144.28,6.9257]